bitfinex-derivatives/quotes_BTCF0:USTF0_20250629
["timestamp","ask_amount","ask_price","bid_price","bid_amount"]
[1751223699151,1.54329526,107700.0,107690.0,0.84161627]
[1751223700248,1.54329526,107700.0,107690.0,0.58065165]
[1751223700546,1.54329526,107700.0,107690.0,0.84161627]
[1751223701548,1.54329526,107700.0,107690.0,0.89716459]
[1751223705546,1.52149032,107700.0,107690.0,0.89716459]
[1751223706450,0.96189032,107700.0,107690.0,0.89716459]
[1751223712057,0.60109032,107700.0,107690.0,0.89716459]
[1751223712354,0.96189032,107700.0,107690.0,0.89716459]
[1751223713454,0.96189032,107700.0,107690.0,0.84161627]
[1751223714361,0.96189032,107700.0,107690.0,0.82710412]
[1751223714953,0.96189032,107700.0,107690.0,0.88264363]
[1751223715154,0.96189032,107700.0,107690.0,0.89715594]
[1751223724857,1.22285494,107700.0,107690.0,0.63619162]
[1751223725063,1.22285494,107700.0,107690.0,0.57259162]
[1751223725064,1.25535494,107700.0,107690.0,0.57259162]
[1751223725360,0.1485397,107690.0,107680.0,0.07494589]
[1751223725560,0.1485535,107680.0,107670.0,0.09252157]
[1751223725763,0.1485673,107670.0,107660.0,0.00946771]
[1751223725965,2.28508004,107670.0,107660.0,0.1485811]
[1751223726161,0.5008,107670.0,107660.0,0.67051034]
[1751223726360,0.14,107670.0,107660.0,1.33611034]
[1751223726568,0.14,107670.0,107660.0,0.8141811]
[1751223726865,0.14,107670.0,107660.0,1.89551034]
[1751223727865,0.16130682,107670.0,107660.0,1.89551034]
[1751223728061,0.14,107670.0,107660.0,1.33611034]
[1751223728265,0.14,107670.0,107660.0,1.89555034]
[1751223728467,0.14,107670.0,107660.0,1.89455034]
[1751223728767,0.14,107670.0,107660.0,1.89555034]
[1751223729068,0.14,107670.0,107660.0,1.41209082]
[1751223729362,0.14,107670.0,107660.0,1.98100828]
[1751223731068,0.14,107670.0,107660.0,1.98300828]
[1751223733980,0.14,107670.0,107660.0,1.46107904]
[1751223734181,0.14,107670.0,107660.0,1.98300828]
[1751223735678,0.14,107670.0,107660.0,2.05692876]
[1751223738178,0.14,107670.0,107660.0,2.05592876]
[1751223738374,0.14,107670.0,107660.0,2.05692876]
[1751223747689,0.14,107670.0,107660.0,2.05592876]
[1751223747886,0.14,107670.0,107660.0,2.05692876]
[1751223753892,0.14,107670.0,107660.0,1.49748876]
[1751223754080,0.14,107670.0,107660.0,2.05692876]
[1751223756090,0.14,107670.0,107660.0,1.98300828]
[1751223757796,0.14,107670.0,107660.0,2.05706033]
[1751223761100,0.14,107670.0,107660.0,1.69626033]
[1751223761292,0.14,107670.0,107660.0,2.05706033]
[1751223764102,0.14,107670.0,107660.0,2.04758287]
[1751223767302,0.14,107670.0,107660.0,2.05682324]
[1751223767802,0.14,107670.0,107660.0,1.98277119]
[1751223768000,0.14,107670.0,107660.0,2.07529276]
[1751223771106,0.14,107670.0,107660.0,1.71449276]
[1751223771306,0.14,107670.0,107660.0,2.07529276]
[1751223772408,0.14,107670.0,107660.0,1.70525239]
[1751223772610,0.14,107670.0,107660.0,2.06605239]
[1751223776113,0.14,107670.0,107660.0,2.07516246]
[1751223776314,0.14,107670.0,107660.0,1.70525239]
[1751223778017,0.14,107670.0,107660.0,2.06605239]
[1751223780118,0.14,107670.0,107660.0,2.07535989]
[1751223780920,0.14,107670.0,107660.0,2.06605239]
[1751223786821,0.14,107670.0,107660.0,1.97353082]
[1751223787813,0.14,107670.0,107660.0,2.06605239]
[1751223791726,0.14,107670.0,107660.0,1.97353082]
[1751223791926,0.14,107670.0,107660.0,2.06605239]
[1751223792627,0.14,107670.0,107660.0,1.50661239]
[1751223792924,0.54953182,107670.0,107660.0,0.3605811]
[1751223793129,0.54953182,107670.0,107660.0,1.01246267]
[1751223793130,1.00503182,107670.0,107660.0,1.01246267]
[1751223793328,1.00503182,107670.0,107660.0,1.18090572]
[1751223793732,1.00503182,107670.0,107660.0,1.25501418]
[1751223793934,1.00503182,107670.0,107660.0,0.69565418]
[1751223794128,1.00503182,107670.0,107660.0,0.99404956]
[1751223794429,0.7440672,107670.0,107660.0,1.25501418]
[1751223794630,1.00503182,107670.0,107660.0,1.25501418]
[1751223795325,1.00503182,107670.0,107660.0,1.18090572]
[1751223796225,0.7440672,107670.0,107660.0,1.23644759]
[1751223796432,1.00503182,107670.0,107660.0,1.23644759]
[1751223800728,1.00503182,107670.0,107660.0,0.97548297]
[1751223800929,1.00503182,107670.0,107660.0,1.23644759]
[1751223804736,1.34503182,107670.0,107660.0,1.23644759]
[1751223805734,1.00503182,107670.0,107660.0,1.23644759]
[1751223805936,1.38503182,107670.0,107660.0,1.23644759]
[1751223806135,1.35503182,107670.0,107660.0,1.23644759]
[1751223806333,1.00503182,107670.0,107660.0,1.23644759]
[1751223806636,1.38503182,107670.0,107660.0,0.67708759]
[1751223806836,1.00503182,107670.0,107660.0,0.67708759]
[1751223807130,1.31503182,107670.0,107660.0,0.67708759]
[1751223807335,1.36503182,107670.0,107660.0,0.67708759]
[1751223807535,1.00503182,107670.0,107660.0,0.67708759]
[1751223810235,1.34503182,107670.0,107660.0,0.41612297]
[1751223810540,1.34503182,107670.0,107660.0,0.71409275]
[1751223811139,1.0840672,107670.0,107660.0,0.67708759]
[1751223811342,1.34503182,107670.0,107660.0,0.67708759]
[1751223811842,1.34503182,107670.0,107660.0,0.71409334]
[1751223812443,1.47315182,107670.0,107660.0,0.71409334]
[1751223813043,1.47315182,107670.0,107660.0,0.67708759]
[1751223815648,1.47315182,107670.0,107660.0,0.71410041]
[1751223817844,1.47315182,107670.0,107660.0,0.48313579]
[1751223818042,1.47315182,107670.0,107660.0,0.70708759]
[1751223819051,2.03283182,107670.0,107660.0,0.73848759]
[1751223820950,1.90471182,107670.0,107660.0,0.73848759]
[1751223821146,1.87271182,107670.0,107660.0,0.73848759]
[1751223821855,1.87271182,107670.0,107660.0,0.47752297]
[1751223822055,1.87271182,107670.0,107660.0,0.73848759]
[1751223823154,1.87271182,107670.0,107660.0,0.68294572]
[1751223823355,1.87271182,107670.0,107660.0,0.71474572]
[1751223824856,1.87271182,107670.0,107660.0,0.77032833]
[1751223825756,1.90511182,107670.0,107660.0,0.73852833]
[1751223829658,1.90511182,107670.0,107660.0,0.58994723]
[1751223830755,1.90511182,107670.0,107660.0,0.32898261]
[1751223830962,1.90511182,107670.0,107660.0,0.28161909]
[1751223831151,1.90511182,107670.0,107660.0,0.31867638]
[1751223832053,2.16607644,107670.0,107660.0,0.31867638]
[1751223832356,2.16607644,107670.0,107660.0,0.05309377]
[1751223833159,0.148581,107660.0,107650.0,0.0565115]
[1751223833358,1.213201,107660.0,107650.0,0.2665115]
[1751223833557,1.73513024,107660.0,107650.0,0.2665115]
[1751223834456,1.73513024,107660.0,107650.0,0.2695115]
[1751223834653,1.73513024,107660.0,107650.0,0.00392889]
[1751223835263,1.73513024,107660.0,107650.0,0.00592889]
[1751223836463,1.73513024,107660.0,107650.0,0.00392889]
[1751223837165,0.1486084,107640.0,107630.0,0.56335843]
[1751223837362,1.91960594,107640.0,107630.0,0.51090556]
[1751223837957,2.18980073,107640.0,107630.0,0.47780556]
[1751223838160,2.18980073,107640.0,107630.0,0.26558261]
[1751223838359,2.28660073,107640.0,107630.0,0.27358261]
[1751223838562,1.96660073,107640.0,107630.0,0.27358261]
[1751223838762,2.31660073,107640.0,107630.0,0.27358261]
[1751223839758,2.31660073,107640.0,107630.0,0.218]
[1751223840259,1.33529611,107640.0,107630.0,0.3756223]
[1751223840562,1.95999611,107640.0,107630.0,0.69918692]
[1751223840762,1.95999611,107640.0,107630.0,0.71598692]
[1751223840763,1.95899611,107640.0,107630.0,0.71598692]
[1751223840960,2.21996073,107640.0,107630.0,0.3084]
[1751223841155,2.21996073,107640.0,107630.0,0.4570223]
[1751223842158,2.22024073,107640.0,107630.0,0.4570223]
[1751223842462,1.95927611,107640.0,107630.0,0.4570223]
[1751223843156,2.22024073,107640.0,107630.0,0.4570223]
[1751223845164,2.22024073,107640.0,107630.0,0.47154382]
[1751223845467,2.22040073,107640.0,107630.0,0.47154382]
[1751223846061,2.22040073,107640.0,107630.0,0.26154382]
[1751223851773,1.69847149,107640.0,107630.0,0.26154382]
[1751223852072,2.22040073,107640.0,107630.0,0.26154382]
[1751223853772,2.22040073,107640.0,107630.0,0.11292152]
[1751223853972,2.22040073,107640.0,107630.0,0.26154392]
[1751223854176,2.31810073,107640.0,107630.0,0.26154392]
[1751223856969,1.62926073,107640.0,107630.0,0.26154392]
[1751223857167,2.31790073,107640.0,107630.0,0.26154392]
[1751223857973,2.31790073,107640.0,107630.0,0.08112152]
[1751223858272,2.31790073,107640.0,107630.0,0.16714382]
[1751223858464,2.31790073,107640.0,107630.0,0.01852152]
[1751223859369,2.31790073,107640.0,107630.0,0.16714382]
[1751223863075,2.31790073,107640.0,107630.0,0.20416853]
[1751223865378,2.31790073,107640.0,107630.0,0.21863803]
[1751223867579,2.31790073,107640.0,107630.0,0.07001573]
[1751223871682,2.31790073,107640.0,107630.0,0.21863813]
[1751223873080,2.31790073,107640.0,107630.0,0.07001573]
[1751223874578,0.14865,107610.0,107600.0,0.48283343]
[1751223874777,1.83033462,107610.0,107600.0,0.5708877]
[1751223874983,1.87313108,107610.0,107600.0,0.75763762]
[1751223875180,1.53313108,107610.0,107600.0,0.73931325]
[1751223875578,1.53413108,107610.0,107600.0,0.73982562]
[1751223876382,1.53413108,107610.0,107600.0,0.66562842]
[1751223876774,1.53513108,107610.0,107600.0,0.67362842]
[1751223878074,1.53513108,107610.0,107600.0,0.65862842]
[1751223878075,1.53413108,107610.0,107600.0,0.65862842]
[1751223878279,1.53413108,107610.0,107600.0,0.66562842]
[1751223879783,1.53413108,107610.0,107600.0,0.4046638]
[1751223879987,1.56653108,107610.0,107600.0,0.4046638]
[1751223880186,1.88653108,107610.0,107600.0,0.4046638]
[1751223880784,1.56653108,107610.0,107600.0,0.3736638]
[1751223881277,1.90653108,107610.0,107600.0,0.3736638]
[1751223882086,1.90653108,107610.0,107600.0,0.22]
[1751223883189,1.90553108,107610.0,107600.0,0.3616638]
[1751223884085,1.90553108,107610.0,107600.0,0.213]
[1751223886695,1.90553108,107610.0,107600.0,0.22752535]
[1751223886996,1.90553108,107610.0,107600.0,0.213]
[1751223887393,1.56553108,107610.0,107600.0,0.3616642]
[1751223890489,1.56553108,107610.0,107600.0,0.3926642]
[1751223894595,1.89553108,107610.0,107600.0,0.3926642]
[1751223896400,1.89545108,107610.0,107600.0,0.3926642]
[1751223900295,1.99121108,107610.0,107600.0,0.66815417]
[1751223901197,2.01247942,107610.0,107600.0,0.66815417]
[1751223903200,2.01247942,107610.0,107600.0,0.70055417]
[1751223903395,2.01297588,107610.0,107600.0,0.70055417]
[1751223905400,2.01297588,107610.0,107600.0,0.75609899]
[1751223907401,1.32497588,107610.0,107600.0,0.75609899]
[1751223907598,2.01285588,107610.0,107600.0,0.75609899]
[1751223908797,1.75189126,107610.0,107600.0,0.75609899]
[1751223909003,1.75189126,107610.0,107600.0,1.32231879]
[1751223909004,1.05210126,107610.0,107600.0,1.32231879]
[1751223909204,1.82251638,107610.0,107600.0,1.04966361]
[1751223909504,1.80124804,107610.0,107600.0,0.82581628]
[1751223910206,1.80124804,107610.0,107600.0,0.78869899]
[1751223917003,1.80124804,107610.0,107600.0,0.43173427]
[1751223917201,2.15851266,107610.0,107600.0,0.43173427]
[1751223917507,2.15851266,107610.0,107600.0,0.32020731]
[1751223917908,2.26239498,107610.0,107600.0,0.26466249]
[1751223918907,2.26239498,107610.0,107600.0,0.26266249]
[1751223919800,2.26416572,107610.0,107600.0,0.24713714]
[1751223921099,2.26416572,107610.0,107600.0,0.21]
[1751223923008,2.26416572,107610.0,107600.0,0.22452653]
[1751223923805,2.00281573,107610.0,107600.0,0.22452653]
[1751223926606,2.00281573,107610.0,107600.0,0.21]
[1751223927214,1.18162574,107610.0,107600.0,0.21]
[1751223927415,2.13089573,107610.0,107600.0,0.21]
[1751223931324,1.86954574,107610.0,107600.0,0.21]
[1751223931516,2.13089573,107610.0,107600.0,0.21]
[1751223936223,2.49169573,107610.0,107600.0,0.21]
[1751223940917,2.23034574,107610.0,107600.0,0.21]
[1751223941128,0.1486643,107600.0,107590.0,0.63007218]
[1751223941330,0.6494643,107600.0,107590.0,0.85459876]
[1751223941529,0.64996076,107600.0,107590.0,0.85459876]
[1751223941829,0.91125362,107600.0,107590.0,0.85454163]
[1751223942328,0.91125362,107600.0,107590.0,0.85654163]
[1751223943128,0.91125362,107600.0,107590.0,0.85754163]
[1751223943429,0.64996076,107600.0,107590.0,0.85754163]
[1751223943630,0.91125362,107600.0,107590.0,0.85754163]
[1751223944526,1.47145362,107600.0,107590.0,0.85754163]
[1751223946132,1.47145362,107600.0,107590.0,0.91308645]
[1751223948025,1.47145362,107600.0,107590.0,0.87594931]
[1751223948231,1.21016076,107600.0,107590.0,0.87594931]
[1751223948432,1.47145362,107600.0,107590.0,0.87594931]
[1751223948633,1.47145362,107600.0,107590.0,0.83877991]
[1751223949932,2.07274648,107600.0,107590.0,0.31440081]
[1751223950228,2.13604648,107600.0,107590.0,0.46307901]
[1751223950532,1.79604648,107600.0,107590.0,0.46307901]
[1751223951030,1.79604648,107600.0,107590.0,0.50024644]
[1751223951231,1.79604648,107600.0,107590.0,0.46307901]
[1751223951932,1.79604648,107600.0,107590.0,0.72437187]
[1751223953633,1.53475362,107600.0,107590.0,0.72437187]
[1751223958341,0.68026076,107600.0,107590.0,0.72437187]
[1751223958540,1.36962076,107600.0,107590.0,0.74991527]
[1751223958832,1.63091362,107600.0,107590.0,0.74991527]
[1751223959139,1.63091362,107600.0,107590.0,0.80565858]
[1751223959341,1.36962076,107600.0,107590.0,0.80565858]
[1751223959535,1.36962076,107600.0,107590.0,0.74991527]
[1751223959936,1.63091362,107600.0,107590.0,0.74991527]
[1751223960232,0.50129646,107600.0,107590.0,1.08540533]
[1751223960436,0.14049646,107600.0,107590.0,2.00744533]
[1751223960638,0.28916086,107600.0,107590.0,2.00744533]
[1751223961141,0.14049646,107600.0,107590.0,2.00744533]
[1751223961335,0.14049646,107600.0,107590.0,1.93324813]
[1751223961542,0.14049646,107600.0,107590.0,2.00750204]
[1751223964346,0.14049646,107600.0,107590.0,2.19338204]
[1751223965047,0.00049646,107610.0,107600.0,0.1486644]
[1751223965242,0.12049646,107610.0,107600.0,1.01522331]
[1751223965744,0.12049646,107610.0,107600.0,1.03383061]
[1751223966246,0.12149646,107610.0,107600.0,1.03383061]
[1751223969746,0.12149646,107610.0,107600.0,1.06693061]
[1751223972149,0.12149646,107610.0,107600.0,0.9926767]
[1751223973349,0.12149646,107610.0,107600.0,0.47009098]
[1751223973650,0.12149646,107610.0,107600.0,0.9926767]
[1751223974847,0.12149646,107610.0,107600.0,0.97815012]
[1751223975452,0.12149646,107610.0,107600.0,1.0336995]
[1751223978155,0.12149646,107610.0,107600.0,0.97815012]
[1751223980756,0.15369646,107610.0,107600.0,0.97815012]
[1751223982156,0.15369646,107610.0,107600.0,1.05240403]
[1751223982658,0.30234676,107610.0,107600.0,1.05240403]
[1751223983358,0.33414676,107610.0,107600.0,1.05240403]
[1751223987565,0.18549646,107610.0,107600.0,1.05240403]
[1751223988565,0.33414676,107610.0,107600.0,1.05240403]
[1751223988754,0.15369646,107610.0,107600.0,1.03379934]
[1751223990665,0.15369646,107610.0,107600.0,1.41320403]
[1751223992760,0.15369646,107610.0,107600.0,1.42771486]
[1751223998069,0.15369646,107610.0,107600.0,1.44598252]
[1751224000178,0.15369646,107610.0,107600.0,0.9233968]
[1751224000374,0.15369646,107610.0,107600.0,1.44598252]
[1751224002782,0.15369646,107610.0,107600.0,1.35346095]
[1751224002978,0.15369646,107610.0,107600.0,1.42773296]
[1751224004081,0.15369646,107610.0,107600.0,1.35346095]
[1751224006486,0.15369646,107610.0,107600.0,1.91446095]
[1751224009090,0.15369646,107610.0,107600.0,2.00698252]
[1751224012092,0.15369646,107610.0,107600.0,1.64618252]
[1751224012288,0.15369646,107610.0,107600.0,2.00698252]
[1751224014093,0.15369646,107610.0,107600.0,1.64618252]
[1751224014283,0.15369646,107610.0,107600.0,2.00698252]
[1751224014692,0.18669646,107610.0,107600.0,2.00698252]
[1751224017996,0.18669646,107610.0,107600.0,1.64618252]
[1751224018199,0.18669646,107610.0,107600.0,2.00698252]
[1751224020994,0.18669646,107610.0,107600.0,1.64618252]
[1751224021293,0.18669646,107610.0,107600.0,2.00698252]
[1751224030105,0.18669646,107610.0,107600.0,1.64618252]
[1751224030299,0.18669646,107610.0,107600.0,2.00698252]
[1751224041120,0.18669646,107610.0,107600.0,1.64618252]
[1751224041420,0.18669646,107610.0,107600.0,2.00698252]
[1751224041823,0.15369646,107610.0,107600.0,2.00698252]
[1751224042224,0.12149646,107610.0,107600.0,2.00698252]
[1751224053819,0.3608,107630.0,107610.0,0.001]
[1751224054026,0.4608,107630.0,107620.0,1.30571448]
[1751224054220,0.4608,107630.0,107620.0,1.53022531]
[1751224054423,0.4608,107630.0,107620.0,1.62622531]
[1751224055329,0.4628,107630.0,107620.0,1.62622531]
[1751224056724,0.4608,107630.0,107620.0,1.62622531]
[1751224057027,0.4628,107630.0,107620.0,1.63535132]
[1751224057731,0.4658,107630.0,107620.0,1.63535132]
[1751224058528,0.4658,107630.0,107620.0,1.1127656]
[1751224058724,0.4658,107630.0,107620.0,1.63535132]
[1751224058923,0.4965,107630.0,107620.0,1.63535132]
[1751224059429,0.4965,107630.0,107620.0,1.62622531]
[1751224061127,0.4935,107630.0,107620.0,1.62622531]
[1751224061332,0.4975,107630.0,107620.0,1.62622531]
[1751224062435,0.4975,107630.0,107620.0,1.59362531]
[1751224062636,0.56,107630.0,107620.0,1.59362531]
[1751224062834,0.56,107630.0,107620.0,1.57911448]
[1751224072543,0.1992,107630.0,107620.0,1.57911448]
[1751224075646,0.1972,107630.0,107620.0,1.57911448]
[1751224076046,0.1972,107630.0,107620.0,1.05652876]
[1751224076247,0.1962,107630.0,107620.0,1.57911448]
[1751224091054,0.1962,107630.0,107620.0,1.53812252]
[1751224095354,0.1642,107630.0,107620.0,1.53812252]
[1751224097462,0.1337,107630.0,107620.0,1.53812252]
[1751224102170,0.1337,107630.0,107620.0,1.63064409]
[1751224116380,0.282323,107630.0,107620.0,0.54785837]
[1751224116584,0.282323,107630.0,107620.0,1.56698409]
[1751224116782,0.345723,107630.0,107620.0,1.56698409]
[1751224117372,0.60701586,107630.0,107620.0,0.74565123]
[1751224117577,0.96781586,107630.0,107620.0,1.17996966]
[1751224117883,1.29781586,107630.0,107620.0,1.17996966]
[1751224118184,0.96781586,107630.0,107620.0,1.17996966]
[1751224118382,0.96781586,107630.0,107620.0,1.18000966]
[1751224119184,1.34781586,107630.0,107620.0,1.18000966]
[1751224119990,1.34781586,107630.0,107620.0,0.9187168]
[1751224120180,1.34781586,107630.0,107620.0,1.23570757]
[1751224121390,0.96781586,107630.0,107620.0,1.23570757]
[1751224123384,1.28781586,107630.0,107620.0,1.23570757]
[1751224124192,0.96781586,107630.0,107620.0,1.23570757]
[1751224124787,0.96781586,107630.0,107620.0,1.25428584]
[1751224125289,1.32781586,107630.0,107620.0,1.25428584]
[1751224125488,1.28781586,107630.0,107620.0,1.25428584]
[1751224125789,1.28781586,107630.0,107620.0,1.25424584]
[1751224126285,0.96781586,107630.0,107620.0,1.25424584]
[1751224126592,1.32781586,107630.0,107620.0,1.25424584]
[1751224128090,1.32781586,107630.0,107620.0,1.26865605]
[1751224128292,1.32781586,107630.0,107620.0,1.2500685]
[1751224130587,0.96781586,107630.0,107620.0,1.2500685]
[1751224130893,0.706523,107630.0,107620.0,1.2500685]
[1751224131084,0.96781586,107630.0,107620.0,1.2500685]
[1751224132391,0.96781586,107630.0,107620.0,1.23565829]
[1751224134792,0.96781586,107630.0,107620.0,1.26875829]
[1751224136592,0.60701586,107630.0,107620.0,1.21306966]
[1751224136794,0.96781586,107630.0,107620.0,1.21306966]
[1751224137195,0.96781586,107630.0,107620.0,1.26875336]
[1751224138297,0.96781586,107630.0,107620.0,1.28734584]
[1751224141597,0.60701586,107630.0,107620.0,1.28734584]
[1751224141896,0.96781586,107630.0,107620.0,1.28734584]
[1751224143198,0.643123,107630.0,107620.0,1.5486387]
[1751224143399,0.643123,107630.0,107620.0,1.6106387]
[1751224147105,0.612423,107630.0,107620.0,1.6106387]
[1751224151603,0.612423,107630.0,107620.0,1.53636252]
[1751224152600,0.612423,107630.0,107620.0,1.0137768]
[1751224152795,0.87371586,107630.0,107620.0,1.53636252]
[1751224153001,0.90651586,107630.0,107620.0,1.53636252]
[1751224154311,0.90651586,107630.0,107620.0,0.97632252]
[1751224154512,0.90651586,107630.0,107620.0,1.53640252]
[1751224156614,1.24651586,107630.0,107620.0,1.27510966]
[1751224156814,0.90651586,107630.0,107620.0,1.27510966]
[1751224157014,0.90651586,107630.0,107620.0,1.24350966]
[1751224157214,0.96961586,107630.0,107620.0,1.21310966]
[1751224157813,1.31961586,107630.0,107620.0,1.21310966]
[1751224158214,1.31961586,107630.0,107620.0,1.26885316]
[1751224158916,1.058323,107630.0,107620.0,1.26885316]
[1751224159119,1.31961586,107630.0,107620.0,1.26885316]
[1751224160309,0.95881586,107630.0,107620.0,1.26885316]
[1751224160515,1.31961586,107630.0,107620.0,1.26885316]
[1751224160814,0.96961586,107630.0,107620.0,1.26885316]
[1751224161817,0.96961586,107630.0,107620.0,1.30085316]
[1751224167423,0.96961586,107630.0,107620.0,1.31938584]
[1751224168225,0.96961586,107630.0,107620.0,1.24510966]
[1751224168422,0.96961586,107630.0,107620.0,1.30084804]
[1751224178325,0.96961586,107630.0,107620.0,1.31938584]
[1751224179834,0.96961586,107630.0,107620.0,1.35228584]
[1751224181537,0.96961586,107630.0,107620.0,1.6135787]
[1751224182336,0.96961586,107630.0,107620.0,1.35228584]
[1751224183627,0.96961586,107630.0,107620.0,1.27800966]
[1751224185034,0.96961586,107630.0,107620.0,1.33376789]
[1751224185236,1.29961586,107630.0,107620.0,1.33376789]
[1751224185838,0.96961586,107630.0,107620.0,1.33376789]
[1751224186038,0.96961586,107630.0,107620.0,1.30086789]
[1751224186238,1.27961586,107630.0,107620.0,1.30086789]
[1751224189842,1.27961586,107630.0,107620.0,0.29885823]
[1751224190043,1.27961586,107630.0,107620.0,0.21]
[1751224190243,0.96961586,107630.0,107620.0,0.21]
[1751224190444,1.30961586,107630.0,107620.0,0.21]
[1751224191139,0.1486506,107610.0,107600.0,0.19755267]
[1751224191338,0.52994346,107610.0,107600.0,1.44173943]
[1751224191539,0.56174346,107610.0,107600.0,0.88169943]
[1751224191843,0.56174346,107610.0,107600.0,1.44173943]
[1751224192946,0.56174346,107610.0,107600.0,1.44373943]
[1751224193746,0.56474346,107610.0,107600.0,1.42354803]
[1751224194045,0.56574346,107610.0,107600.0,1.42354803]
[1751224194946,0.91574346,107610.0,107600.0,1.42354803]
[1751224195146,1.27654346,107610.0,107600.0,1.38638223]
[1751224196042,1.27654346,107610.0,107600.0,0.53434937]
[1751224196242,1.33884346,107610.0,107600.0,1.35568223]
[1751224196443,1.34884346,107610.0,107600.0,1.35568223]
[1751224196643,1.30884346,107610.0,107600.0,1.35568223]
[1751224197548,1.30884346,107610.0,107600.0,0.79564223]
[1751224197748,1.30884346,107610.0,107600.0,1.35568223]
[1751224199650,1.0475506,107610.0,107600.0,1.35568223]
[1751224199850,0.98884346,107610.0,107600.0,1.35568223]
[1751224200453,0.98884346,107610.0,107600.0,1.28135206]
[1751224200950,1.34884346,107610.0,107600.0,1.24418676]
[1751224201150,1.36884346,107610.0,107600.0,1.2998694]
[1751224201350,1.35884346,107610.0,107600.0,1.2998694]
[1751224201552,1.34884346,107610.0,107600.0,1.2998694]
[1751224201748,0.98884346,107610.0,107600.0,1.2998694]
[1751224202450,1.31884346,107610.0,107600.0,1.2998694]
[1751224203353,1.31884346,107610.0,107600.0,1.3309694]
[1751224203950,0.98884346,107610.0,107600.0,1.3309694]
[1751224204652,0.95734346,107610.0,107600.0,1.3309694]
[1751224205254,0.92654346,107610.0,107600.0,1.3309694]
[1751224216160,0.56574346,107610.0,107600.0,1.3309694]
[1751224216362,0.92654346,107610.0,107600.0,1.3309694]
[1751224224166,0.92654346,107610.0,107600.0,1.27528676]
[1751224225168,0.92654346,107610.0,107600.0,1.34961693]
[1751224225468,0.92654346,107610.0,107600.0,1.27528676]
[1751224227966,0.92654346,107610.0,107600.0,1.34961693]
[1751224228172,0.92654346,107610.0,107600.0,1.61090979]
[1751224228869,0.92654346,107610.0,107600.0,1.34961693]
[1751224229965,0.92654346,107610.0,107600.0,1.61090979]
[1751224231471,0.6334506,107610.0,107600.0,1.61090979]
[1751224237884,0.2726506,107610.0,107600.0,1.61090979]
[1751224238085,0.6334506,107610.0,107600.0,1.61090979]
[1751224239283,0.2726506,107610.0,107600.0,1.61090979]
[1751224239483,0.6334506,107610.0,107600.0,1.61090979]
[1751224242886,0.2726506,107610.0,107600.0,1.61090979]
[1751224243081,0.6334506,107610.0,107600.0,1.61090979]
[1751224244089,0.2726506,107610.0,107600.0,1.61090979]
[1751224244283,0.6334506,107610.0,107600.0,1.61090979]
[1751224249090,0.2726506,107610.0,107600.0,1.61090979]
[1751224249490,0.2726506,107610.0,107600.0,1.53657962]
[1751224250186,0.2726506,107610.0,107600.0,1.61091524]
[1751224253092,0.2726506,107610.0,107600.0,1.62543888]
[1751224257899,0.124,107610.0,107600.0,1.62543888]
[1751224260200,0.2726506,107610.0,107600.0,1.62543888]
[1751224260400,0.124,107610.0,107600.0,1.62543888]
[1751224262204,0.2726506,107610.0,107600.0,1.62543888]
[1751224269604,0.2726506,107610.0,107600.0,0.54281316]
[1751224269809,0.2726506,107610.0,107600.0,1.53005888]
[1751224270010,0.3702506,107610.0,107600.0,1.53005888]
[1751224270808,0.3702506,107610.0,107600.0,0.97009888]
[1751224271010,0.3702506,107610.0,107600.0,1.53005888]
[1751224276116,0.3702506,107610.0,107600.0,1.45572326]
[1751224278412,0.3702506,107610.0,107600.0,1.54824483]
[1751224282819,0.3702506,107610.0,107600.0,1.45572326]
[1751224283019,0.3702506,107610.0,107600.0,1.53008426]
[1751224286121,0.3702506,107610.0,107600.0,1.54824483]
[1751224288729,0.3702506,107610.0,107600.0,1.58044483]
[1751224291230,0.3702506,107610.0,107600.0,1.48792326]
[1751224293431,0.3702506,107610.0,107600.0,1.51882326]
[1751224295534,0.3702506,107610.0,107600.0,1.55092326]
[1751224295732,0.3702506,107610.0,107600.0,1.62528428]
[1751224295934,0.3048506,107610.0,107600.0,1.62528428]
[1751224298133,0.2726506,107610.0,107600.0,1.55092326]
[1751224298842,0.2726506,107610.0,107600.0,1.62528428]
[1751224303034,0.2726506,107610.0,107600.0,1.64344483]
[1751224304045,0.2726506,107610.0,107600.0,1.55092326]
[1751224308552,0.2726506,107610.0,107600.0,1.62528427]
[1751224318452,0.2726506,107610.0,107600.0,1.64344483]
[1751224321161,0.2726506,107610.0,107600.0,1.55092326]
[1751224325466,0.2726506,107610.0,107600.0,1.53639962]
[1751224327165,0.2726506,107610.0,107600.0,1.62892119]
[1751224327365,0.2726506,107610.0,107600.0,1.64344483]
[1751224327662,0.2726506,107610.0,107600.0,1.71780585]
[1751224327866,0.2726506,107610.0,107600.0,1.62528428]
[1751224330966,0.2726506,107610.0,107600.0,1.64344483]
[1751224336468,0.2726506,107610.0,107600.0,1.58044483]
[1751224336670,0.3660506,107610.0,107600.0,1.54824483]
[1751224337874,0.3660506,107610.0,107600.0,1.58034483]
[1751224347276,0.3660506,107610.0,107600.0,1.61204483]
[1751224347677,0.3660506,107610.0,107600.0,1.64504483]
[1751224348380,0.3660506,107610.0,107600.0,1.71940562]
[1751224348582,0.3660506,107610.0,107600.0,1.62688405]
[1751224350591,0.3358506,107610.0,107600.0,1.62688405]
[1751224351290,0.3028506,107610.0,107600.0,1.62688405]
[1751224353793,0.3028506,107610.0,107600.0,1.61236041]
[1751224353995,0.3028506,107610.0,107600.0,1.62688414]
[1751224358401,0.3028506,107610.0,107600.0,1.55252335]
[1751224358597,0.3028506,107610.0,107600.0,1.64504492]
[1751224362707,0.3028506,107610.0,107600.0,1.1224592]
[1751224363202,0.3028506,107610.0,107600.0,1.64504492]
[1751224369108,0.3028506,107610.0,107600.0,1.67301893]
[1751224374112,0.3028506,107610.0,107600.0,1.6584952]
[1751224374612,0.3028506,107610.0,107600.0,1.67301893]
[1751224379824,0.2726506,107610.0,107600.0,1.57621893]
[1751224380923,0.2726506,107610.0,107600.0,1.67291893]
[1751224383222,0.3052506,107610.0,107600.0,1.67291893]
[1751224383622,0.3052506,107610.0,107600.0,1.60891893]
[1751224383824,0.3694506,107610.0,107600.0,1.60891893]
[1751224388416,0.3694506,107610.0,107600.0,1.67021893]
[1751224388617,0.3052506,107610.0,107600.0,1.67021893]
[1751224394134,0.2726506,107610.0,107600.0,1.57621893]
[1751224396536,0.2726506,107610.0,107600.0,1.66911893]
[1751224398530,0.2726506,107610.0,107600.0,1.57659736]
[1751224408644,0.2726506,107610.0,107600.0,1.66911893]
[1751224418957,0.2726506,107610.0,107600.0,0.52627321]
[1751224419155,0.56674346,107610.0,107600.0,1.3290477]
[1751224419354,0.62854346,107610.0,107600.0,1.30107369]
[1751224419554,0.3672506,107610.0,107600.0,1.56236655]
[1751224422959,0.3672506,107610.0,107600.0,1.30107369]
[1751224423160,0.62854346,107610.0,107600.0,1.30107369]
[1751224423355,0.3672506,107610.0,107600.0,1.56236655]